Workbook

Sheet 加入情報入力用 (hidden)
A1: 加入情報
A3: 過年度試算 | B3: 次年度試算
A4: ↑現年度試算はチェック不要↑
A5: 年度 | B5: =IF(世帯情報入力用!A4="","",世帯情報入力用!A4) -> 7
A6: 開始月 | B6: 4
A7: 終了月 | B7: 3
A8: 手続き月 | C8: =IF(B17=TRUE,"←入力不要","") -> 
A10: 保険料額 | B10: =IF(OR(B6="",B7=""),"",ROUNDDOWN(世帯賦課条件!B31*(B21-B20+1)/12,0)) -> 0
A11: 期割回数 | B11: =IF(AND(B16=FALSE,B17=FALSE,B8=""),"",IF(B16=TRUE,1,IF(B17=TRUE,10,VLOOKUP(B8,$A$22:$C$33,3,0)))) -> 
A13: 今年度75歳
A14: =IF(B18=TRUE,"誕生日月","") ->  | C14: =IF(AND(B18=TRUE,B14=""),"←誕生日月入力","") -> 
A16: 過年度試算 | B16: FALSE
A17: 次年度試算 | B17: FALSE
A18: 75歳 誕生日 | B18: FALSE
A19: 誕生日月前月 | B19: =IF(B14="","",IF(B14=1,12,B14-1)) -> 
A20: 月分 開始値 | B20: =VLOOKUP(B6,$A$22:$B$33,2,0) -> 1
A21: 月分 終了値 | B21: =VLOOKUP(B7,$A$22:$B$33,2,0) -> 12
A22: 4 | B22: 1 | C22: 10
A23: 5 | B23: 2 | C23: 10
A24: 6 | B24: 3 | C24: 9
A25: 7 | B25: 4 | C25: 8
A26: 8 | B26: 5 | C26: 7
A27: 9 | B27: 6 | C27: 6
A28: 10 | B28: 7 | C28: 5
A29: 11 | B29: 8 | C29: 4
A30: 12 | B30: 9 | C30: 3
A31: 1 | B31: 10 | C31: 2
A32: 2 | B32: 11 | C32: 1
A33: 3 | B33: 12 | C33: 1

Sheet 世帯情報入力用
A1: 保険料試算
A3: 年度 | B3: 加入者1 | D3: =IF(OR(B6="",C6="",D6="",E6=""),"4月末 歳","4月末 "&G17&"歳") -> 4月末 歳 | F3: 今年度→西暦 | G3: =IF($A$4="","",$A$4+2018) -> 2025 | H3: 加入者2 | J3: =IF(OR(H6="",I6="",J6="",K6=""),"4月末 歳","4月末 "&M17&"歳") -> 4月末 歳 | L3: 今年度→西暦 | M3: =IF($A$4="","",$A$4+2018) -> 2025 | N3: 加入者3 | P3: =IF(OR(N6="",O6="",P6="",Q6=""),"4月末 歳","4月末 "&S17&"歳") -> 4月末 歳 | R3: 今年度→西暦 | S3: =IF($A$4="","",$A$4+2018) -> 2025 | T3: 加入者4 | V3: =IF(OR(T6="",U6="",V6="",W6=""),"4月末 歳","4月末 "&Y17&"歳") -> 4月末 歳 | X3: 今年度→西暦 | Y3: =IF($A$4="","",$A$4+2018) -> 2025 | Z3: 加入者5 | AB3: =IF(OR(Z6="",AA6="",AB6="",AC6=""),"4月末 歳","4月末点 "&AE17&"歳") -> 4月末 歳 | AD3: 今年度→西暦 | AE3: =IF($A$4="","",$A$4+2018) -> 2025
A4: 7 | F4: 西暦変換 | G4: =IF(B6="西暦",C6,IF(B6="昭和",C6+1925,IF(B6="平成",C6+1988,IF(B6="令和",C6+2018,"")))) ->  | L4: 西暦変換 | M4: =IF(H6="西暦",I6,IF(H6="昭和",I6+1925,IF(H6="平成",I6+1988,IF(H6="令和",I6+2018,"")))) ->  | R4: 西暦変換 | S4: =IF(N6="西暦",O6,IF(N6="昭和",O6+1925,IF(N6="平成",O6+1988,IF(N6="令和",O6+2018,"")))) ->  | X4: 西暦変換 | Y4: =IF(T6="西暦",U6,IF(T6="昭和",U6+1925,IF(T6="平成",U6+1988,IF(T6="令和",U6+2018,"")))) ->  | AD4: 西暦変換 | AE4: =IF(Z6="西暦",AA6,IF(Z6="昭和",AA6+1925,IF(Z6="平成",AA6+1988,IF(Z6="令和",AA6+2018,"")))) -> 
A5: 生年月日 | B5: 暦 | C5: 年 | D5: 月 | E5: 日 | F5: 未就学児 | G5: =IF(OR(B6="",C6="",D6="",E6=""),"FALSE",IF(AND(G17>=0,G17<6),"TRUE","FALSE")) -> FALSE | H5: 暦 | I5: 年 | J5: 月 | K5: 日 | L5: 未就学児 | M5: =IF(OR(H6="",I6="",J6="",K6=""),"FALSE",IF(AND(M17>=0,M17<6),"TRUE","FALSE")) -> FALSE | N5: 暦 | O5: 年 | P5: 月 | Q5: 日 | R5: 未就学児 | S5: =IF(OR(N6="",O6="",P6="",Q6=""),"FALSE",IF(AND(S17>=0,S17<6),"TRUE","FALSE")) -> FALSE | T5: 暦 | U5: 年 | V5: 月 | W5: 日 | X5: 未就学児 | Y5: =IF(OR(T6="",U6="",V6="",W6=""),"FALSE",IF(AND(Y17>=0,Y17<6),"TRUE","FALSE")) -> FALSE | Z5: 暦 | AA5: 年 | AB5: 月 | AC5: 日 | AD5: 未就学児 | AE5: =IF(OR(Z6="",AA6="",AB6="",AC6=""),"FALSE",IF(AND(AE17>=0,AE17<6),"TRUE","FALSE")) -> FALSE
F6: 介護非該当 | G6: =IF(OR(B6="",C6="",D6="",E6=""),"FALSE",IF(AND(G17>=6,G17<40),"TRUE","FALSE")) -> FALSE | L6: 介護非該当 | M6: =IF(OR(H6="",I6="",J6="",K6=""),"FALSE",IF(AND(M17>=6,M17<40),"TRUE","FALSE")) -> FALSE | R6: 介護非該当 | S6: =IF(OR(N6="",O6="",P6="",Q6=""),"FALSE",IF(AND(S17>=6,S17<40),"TRUE","FALSE")) -> FALSE | X6: 介護非該当 | Y6: =IF(OR(T6="",U6="",V6="",W6=""),"FALSE",IF(AND(Y17>=6,Y17<40),"TRUE","FALSE")) -> FALSE | AD6: 介護非該当 | AE6: =IF(OR(Z6="",AA6="",AB6="",AC6=""),"FALSE",IF(AND(AE17>=6,AE17<40),"TRUE","FALSE")) -> FALSE
A7: 加入事由 | B7: 転入 | F7: 介護該当 | G7: =IF(OR(B6="",C6="",D6="",E6=""),"FALSE",IF(AND(G17>=40,G17<65),"TRUE","FALSE")) -> FALSE | L7: 介護該当 | M7: =IF(OR(H6="",I6="",J6="",K6=""),"FALSE",IF(AND(M17>=40,M17<65),"TRUE","FALSE")) -> FALSE | R7: 介護該当 | S7: =IF(OR(N6="",O6="",P6="",Q6=""),"FALSE",IF(AND(S17>=40,S17<65),"TRUE","FALSE")) -> FALSE | X7: 介護該当 | Y7: =IF(OR(T6="",U6="",V6="",W6=""),"FALSE",IF(AND(Y17>=40,Y17<65),"TRUE","FALSE")) -> FALSE | AD7: 介護該当 | AE7: =IF(OR(Z6="",AA6="",AB6="",AC6=""),"FALSE",IF(AND(AE17>=40,AE17<65),"TRUE","FALSE")) -> FALSE
F8: 65歳以上 | G8: =IF(OR(B6="",C6="",D6="",E6=""),"FALSE",IF(AND(G17>=65,G17<75),"TRUE","FALSE")) -> FALSE | L8: 65歳以上 | M8: =IF(OR(H6="",I6="",J6="",K6=""),"FALSE",IF(AND(M17>=65,M17<75),"TRUE","FALSE")) -> FALSE | R8: 65歳以上 | S8: =IF(OR(N6="",O6="",P6="",Q6=""),"FALSE",IF(AND(S17>=65,S17<75),"TRUE","FALSE")) -> FALSE | X8: 65歳以上 | Y8: =IF(OR(T6="",U6="",V6="",W6=""),"FALSE",IF(AND(Y17>=65,Y17<75),"TRUE","FALSE")) -> FALSE | AD8: 65歳以上 | AE8: =IF(OR(Z6="",AA6="",AB6="",AC6=""),"FALSE",IF(AND(AE17>=65,AE17<75),"TRUE","FALSE")) -> FALSE
B9: 収入金額 | D9: 所得金額 | F9: 給与所得者等 | G9: =IF(OR(G11>0,(D12-G12)>0),1,0) -> 0 | H9: 収入金額 | J9: 所得金額 | L9: 給与所得者等 | M9: =IF(OR(M11>0,(J12-M12)>0),1,0) -> 0 | N9: 収入金額 | P9: 所得金額 | R9: 給与所得者等 | S9: =IF(OR(S11>0,(P12-S12)>0),1,0) -> 0 | T9: 収入金額 | V9: 所得金額 | X9: 給与所得者等 | Y9: =IF(OR(Y11>0,(V12-Y12)>0),1,0) -> 0 | Z9: 収入金額 | AB9: 所得金額 | AD9: 給与所得者等 | AE9: =IF(OR(AE11>0,(AB12-AE12)>0),1,0) -> 0
A10: 給与収入 | D10: =G10-G13 -> 0 | F10: 給与所得(専給含む) | G10: =IF(G15="TRUE",0.3*(IF(B10+B11<551000,0,IF(B10+B11<1619000,B10+B11-550000,IF(B10+B11<1620000,1069000,IF(B10+B11<1622000,1070000,IF(B10+B11<1624000,1072000,IF(B10+B11<1628000,1074000,IF(B10+B11<1800000,INT(INT((B10+B11)/4000)*4000*0.6)+100000,IF(B10+B11<3600000,INT(INT((B10+B11)/4000)*4000*0.7)-80000,IF(B10+B11<6600000,INT(INT((B10+B11)/4000)*4000*0.8)-440000,IF(B10+B11<8500000,INT((B10+B11)*0.9)-1100000,B10+B11-1950000))))))))))),IF(B10+B11<551000,0,IF(B10+B11<1619000,B10+B11-550000,IF(B10+B11<1620000,1069000,IF(B10+B11<1622000,1070000,IF(B10+B11<1624000,1072000,IF(B10+B11<1628000,1074000,IF(B10+B11<1800000,INT(INT((B10+B11)/4000)*4000*0.6)+100000,IF(B10+B11<3600000,INT(INT((B10+B11)/4000)*4000*0.7)-80000,IF(B10+B11<6600000,INT(INT((B10+B11)/4000)*4000*0.8)-440000,IF(B10+B11<8500000,INT((B10+B11)*0.9)-1100000,B10+B11-1950000))))))))))) -> 0 | J10: =M10-M13 -> 0 | L10: 給与所得(専給含む) | M10: =IF(M15="TRUE",0.3*(IF(H10+H11<551000,0,IF(H10+H11<1619000,H10+H11-550000,IF(H10+H11<1620000,1069000,IF(H10+H11<1622000,1070000,IF(H10+H11<1624000,1072000,IF(H10+H11<1628000,1074000,IF(H10+H11<1800000,INT(INT((H10+H11)/4000)*4000*0.6)+100000,IF(H10+H11<3600000,INT(INT((H10+H11)/4000)*4000*0.7)-80000,IF(H10+H11<6600000,INT(INT((H10+H11)/4000)*4000*0.8)-440000,IF(H10+H11<8500000,INT((H10+H11)*0.9)-1100000,H10+H11-1950000))))))))))),IF(H10+H11<551000,0,IF(H10+H11<1619000,H10+H11-550000,IF(H10+H11<1620000,1069000,IF(H10+H11<1622000,1070000,IF(H10+H11<1624000,1072000,IF(H10+H11<1628000,1074000,IF(H10+H11<1800000,INT(INT((H10+H11)/4000)*4000*0.6)+100000,IF(H10+H11<3600000,INT(INT((H10+H11)/4000)*4000*0.7)-80000,IF(H10+H11<6600000,INT(INT((H10+H11)/4000)*4000*0.8)-440000,IF(H10+H11<8500000,INT((H10+H11)*0.9)-1100000,H10+H11-1950000))))))))))) -> 0 | P10: =S10-S13 -> 0 | R10: 給与所得(専給含む) | S10: =IF(S15="TRUE",0.3*(IF(N10+N11<551000,0,IF(N10+N11<1619000,N10+N11-550000,IF(N10+N11<1620000,1069000,IF(N10+N11<1622000,1070000,IF(N10+N11<1624000,1072000,IF(N10+N11<1628000,1074000,IF(N10+N11<1800000,INT(INT((N10+N11)/4000)*4000*0.6)+100000,IF(N10+N11<3600000,INT(INT((N10+N11)/4000)*4000*0.7)-80000,IF(N10+N11<6600000,INT(INT((N10+N11)/4000)*4000*0.8)-440000,IF(N10+N11<8500000,INT((N10+N11)*0.9)-1100000,N10+N11-1950000))))))))))),IF(N10+N11<551000,0,IF(N10+N11<1619000,N10+N11-550000,IF(N10+N11<1620000,1069000,IF(N10+N11<1622000,1070000,IF(N10+N11<1624000,1072000,IF(N10+N11<1628000,1074000,IF(N10+N11<1800000,INT(INT((N10+N11)/4000)*4000*0.6)+100000,IF(N10+N11<3600000,INT(INT((N10+N11)/4000)*4000*0.7)-80000,IF(N10+N11<6600000,INT(INT((N10+N11)/4000)*4000*0.8)-440000,IF(N10+N11<8500000,INT((N10+N11)*0.9)-1100000,N10+N11-1950000))))))))))) -> 0 | V10: =Y10-Y13 -> 0 | X10: 給与所得(専給含む) | Y10: =IF(Y15="TRUE",0.3*(IF(T10+T11<551000,0,IF(T10+T11<1619000,T10+T11-550000,IF(T10+T11<1620000,1069000,IF(T10+T11<1622000,1070000,IF(T10+T11<1624000,1072000,IF(T10+T11<1628000,1074000,IF(T10+T11<1800000,INT(INT((T10+T11)/4000)*4000*0.6)+100000,IF(T10+T11<3600000,INT(INT((T10+T11)/4000)*4000*0.7)-80000,IF(T10+T11<6600000,INT(INT((T10+T11)/4000)*4000*0.8)-440000,IF(T10+T11<8500000,INT((T10+T11)*0.9)-1100000,T10+T11-1950000))))))))))),IF(T10+T11<551000,0,IF(T10+T11<1619000,T10+T11-550000,IF(T10+T11<1620000,1069000,IF(T10+T11<1622000,1070000,IF(T10+T11<1624000,1072000,IF(T10+T11<1628000,1074000,IF(T10+T11<1800000,INT(INT((T10+T11)/4000)*4000*0.6)+100000,IF(T10+T11<3600000,INT(INT((T10+T11)/4000)*4000*0.7)-80000,IF(T10+T11<6600000,INT(INT((T10+T11)/4000)*4000*0.8)-440000,IF(T10+T11<8500000,INT((T10+T11)*0.9)-1100000,T10+T11-1950000))))))))))) -> 0 | AB10: =AE10-AE13 -> 0 | AD10: 給与所得(専給含む) | AE10: =IF(AE15="TRUE",0.3*(IF(Z10+Z11<551000,0,IF(Z10+Z11<1619000,Z10+Z11-550000,IF(Z10+Z11<1620000,1069000,IF(Z10+Z11<1622000,1070000,IF(Z10+Z11<1624000,1072000,IF(Z10+Z11<1628000,1074000,IF(Z10+Z11<1800000,INT(INT((Z10+Z11)/4000)*4000*0.6)+100000,IF(Z10+Z11<3600000,INT(INT((Z10+Z11)/4000)*4000*0.7)-80000,IF(Z10+Z11<6600000,INT(INT((Z10+Z11)/4000)*4000*0.8)-440000,IF(Z10+Z11<8500000,INT((Z10+Z11)*0.9)-1100000,Z10+Z11-1950000))))))))))),IF(Z10+Z11<551000,0,IF(Z10+Z11<1619000,Z10+Z11-550000,IF(Z10+Z11<1620000,1069000,IF(Z10+Z11<1622000,1070000,IF(Z10+Z11<1624000,1072000,IF(Z10+Z11<1628000,1074000,IF(Z10+Z11<1800000,INT(INT((Z10+Z11)/4000)*4000*0.6)+100000,IF(Z10+Z11<3600000,INT(INT((Z10+Z11)/4000)*4000*0.7)-80000,IF(Z10+Z11<6600000,INT(INT((Z10+Z11)/4000)*4000*0.8)-440000,IF(Z10+Z11<8500000,INT((Z10+Z11)*0.9)-1100000,Z10+Z11-1950000))))))))))) -> 0
A11: 専従給与 | F11: 軽判給与所得 | G11: =IF(G15="TRUE",0.3*(IF(B10<551000,0,IF(B10<1619000,B10-550000,IF(B10<1620000,1069000,IF(B10<1622000,1070000,IF(B10<1624000,1072000,IF(B10<1628000,1074000,IF(B10<1800000,INT((INT(B10/4000)*4000)*0.6)+100000,IF(B10<3600000,INT((INT(B10/4000)*4000)*0.7)-80000,IF(B10<6600000,INT((INT(B10/4000)*4000)*0.8)-440000,IF(B10<8500000,INT(B10*0.9)-1100000,B10-1950000))))))))))),IF(B10<551000,0,IF(B10<1619000,B10-550000,IF(B10<1620000,1069000,IF(B10<1622000,1070000,IF(B10<1624000,1072000,IF(B10<1628000,1074000,IF(B10<1800000,INT((INT(B10/4000)*4000)*0.6)+100000,IF(B10<3600000,INT((INT(B10/4000)*4000)*0.7)-80000,IF(B10<6600000,INT((INT(B10/4000)*4000)*0.8)-440000,IF(B10<8500000,INT(B10*0.9)-1100000,B10-1950000))))))))))) -> 0 | L11: 軽判給与所得 | M11: =IF(M15="TRUE",0.3*(IF(H10<551000,0,IF(H10<1619000,H10-550000,IF(H10<1620000,1069000,IF(H10<1622000,1070000,IF(H10<1624000,1072000,IF(H10<1628000,1074000,IF(H10<1800000,INT((INT(H10/4000)*4000)*0.6)+100000,IF(H10<3600000,INT((INT(H10/4000)*4000)*0.7)-80000,IF(H10<6600000,INT((INT(H10/4000)*4000)*0.8)-440000,IF(H10<8500000,INT(H10*0.9)-1100000,H10-1950000))))))))))),IF(H10<551000,0,IF(H10<1619000,H10-550000,IF(H10<1620000,1069000,IF(H10<1622000,1070000,IF(H10<1624000,1072000,IF(H10<1628000,1074000,IF(H10<1800000,INT((INT(H10/4000)*4000)*0.6)+100000,IF(H10<3600000,INT((INT(H10/4000)*4000)*0.7)-80000,IF(H10<6600000,INT((INT(H10/4000)*4000)*0.8)-440000,IF(H10<8500000,INT(H10*0.9)-1100000,H10-1950000))))))))))) -> 0 | R11: 軽判給与所得 | S11: =IF(S15="TRUE",0.3*(IF(N10<551000,0,IF(N10<1619000,N10-550000,IF(N10<1620000,1069000,IF(N10<1622000,1070000,IF(N10<1624000,1072000,IF(N10<1628000,1074000,IF(N10<1800000,INT((INT(N10/4000)*4000)*0.6)+100000,IF(N10<3600000,INT((INT(N10/4000)*4000)*0.7)-80000,IF(N10<6600000,INT((INT(N10/4000)*4000)*0.8)-440000,IF(N10<8500000,INT(N10*0.9)-1100000,N10-1950000))))))))))),IF(N10<551000,0,IF(N10<1619000,N10-550000,IF(N10<1620000,1069000,IF(N10<1622000,1070000,IF(N10<1624000,1072000,IF(N10<1628000,1074000,IF(N10<1800000,INT((INT(N10/4000)*4000)*0.6)+100000,IF(N10<3600000,INT((INT(N10/4000)*4000)*0.7)-80000,IF(N10<6600000,INT((INT(N10/4000)*4000)*0.8)-440000,IF(N10<8500000,INT(N10*0.9)-1100000,N10-1950000))))))))))) -> 0 | X11: 軽判給与所得 | Y11: =IF(Y15="TRUE",0.3*(IF(T10<551000,0,IF(T10<1619000,T10-550000,IF(T10<1620000,1069000,IF(T10<1622000,1070000,IF(T10<1624000,1072000,IF(T10<1628000,1074000,IF(T10<1800000,INT((INT(T10/4000)*4000)*0.6)+100000,IF(T10<3600000,INT((INT(T10/4000)*4000)*0.7)-80000,IF(T10<6600000,INT((INT(T10/4000)*4000)*0.8)-440000,IF(T10<8500000,INT(T10*0.9)-1100000,T10-1950000))))))))))),IF(T10<551000,0,IF(T10<1619000,T10-550000,IF(T10<1620000,1069000,IF(T10<1622000,1070000,IF(T10<1624000,1072000,IF(T10<1628000,1074000,IF(T10<1800000,INT((INT(T10/4000)*4000)*0.6)+100000,IF(T10<3600000,INT((INT(T10/4000)*4000)*0.7)-80000,IF(T10<6600000,INT((INT(T10/4000)*4000)*0.8)-440000,IF(T10<8500000,INT(T10*0.9)-1100000,T10-1950000))))))))))) -> 0 | AD11: 軽判給与所得 | AE11: =IF(AE15="TRUE",0.3*(IF(Z10<551000,0,IF(Z10<1619000,Z10-550000,IF(Z10<1620000,1069000,IF(Z10<1622000,1070000,IF(Z10<1624000,1072000,IF(Z10<1628000,1074000,IF(Z10<1800000,INT((INT(Z10/4000)*4000)*0.6)+100000,IF(Z10<3600000,INT((INT(Z10/4000)*4000)*0.7)-80000,IF(Z10<6600000,INT((INT(Z10/4000)*4000)*0.8)-440000,IF(Z10<8500000,INT(Z10*0.9)-1100000,Z10-1950000))))))))))),IF(Z10<551000,0,IF(Z10<1619000,Z10-550000,IF(Z10<1620000,1069000,IF(Z10<1622000,1070000,IF(Z10<1624000,1072000,IF(Z10<1628000,1074000,IF(Z10<1800000,INT((INT(Z10/4000)*4000)*0.6)+100000,IF(Z10<3600000,INT((INT(Z10/4000)*4000)*0.7)-80000,IF(Z10<6600000,INT((INT(Z10/4000)*4000)*0.8)-440000,IF(Z10<8500000,INT(Z10*0.9)-1100000,Z10-1950000))))))))))) -> 0
A12: 年金収入 | D12: =IF(B12="",0,ROUNDDOWN(IF(G16>=65,(IF(B12<1100000,0,IF(B12<=3300000,B12-1100000,IF(B12<=4100000,(B12*0.75)-275000,IF(B12<=7700000,(B12*0.85)-685000,IF(B12<=10000000,(B12*395)-1455000,B12-1955000)))))),(IF(B12<600000,0,IF(B12<=1300000,B12-600000,IF(B12<=4100000,(B12*0.75)-275000,IF(B12<=7700000,(B12*0.85)-685000,IF(B12<=10000000,(B12*395)-1455000,B12-1955000))))))),0)) -> 0 | F12: 年金１５万円控除 | G12: =IF(B12="",0,IF(G16>=65,IF(D12>=150000,150000,D12),0)) -> 0 | J12: =IF(H12="",0,ROUNDDOWN(IF(M16>=65,(IF(H12<1100000,0,IF(H12<=3300000,H12-1100000,IF(H12<=4100000,(H12*0.75)-275000,IF(H12<=7700000,(H12*0.85)-685000,IF(H12<=10000000,(H12*395)-1455000,H12-1955000)))))),(IF(H12<600000,0,IF(H12<=1300000,H12-600000,IF(H12<=4100000,(H12*0.75)-275000,IF(H12<=7700000,(H12*0.85)-685000,IF(H12<=10000000,(H12*395)-1455000,H12-1955000))))))),0)) -> 0 | L12: 年金１５万円控除 | M12: =IF(H12="",0,IF(M16>=65,IF(J12>=150000,150000,J12),0)) -> 0 | P12: =IF(N12="",0,ROUNDDOWN(IF(S16>=65,(IF(N12<1100000,0,IF(N12<=3300000,N12-1100000,IF(N12<=4100000,(N12*0.75)-275000,IF(N12<=7700000,(N12*0.85)-685000,IF(N12<=10000000,(N12*395)-1455000,N12-1955000)))))),(IF(N12<600000,0,IF(N12<=1300000,N12-600000,IF(N12<=4100000,(N12*0.75)-275000,IF(N12<=7700000,(N12*0.85)-685000,IF(N12<=10000000,(N12*395)-1455000,N12-1955000))))))),0)) -> 0 | R12: 年金１５万円控除 | S12: =IF(N12="",0,IF(S16>=65,IF(P12>=150000,150000,P12),0)) -> 0 | V12: =IF(T12="",0,ROUNDDOWN(IF(Y16>=65,(IF(T12<1100000,0,IF(T12<=3300000,T12-1100000,IF(T12<=4100000,(T12*0.75)-275000,IF(T12<=7700000,(T12*0.85)-685000,IF(T12<=10000000,(T12*395)-1455000,T12-1955000)))))),(IF(T12<600000,0,IF(T12<=1300000,T12-600000,IF(T12<=4100000,(T12*0.75)-275000,IF(T12<=7700000,(T12*0.85)-685000,IF(T12<=10000000,(T12*395)-1455000,T12-1955000))))))),0)) -> 0 | X12: 年金１５万円控除 | Y12: =IF(T12="",0,IF(Y16>=65,IF(V12>=150000,150000,V12),0)) -> 0 | AB12: =IF(Z12="",0,ROUNDDOWN(IF(AE16>=65,(IF(Z12<1100000,0,IF(Z12<=3300000,Z12-1100000,IF(Z12<=4100000,(Z12*0.75)-275000,IF(Z12<=7700000,(Z12*0.85)-685000,IF(Z12<=10000000,(Z12*395)-1455000,Z12-1955000)))))),(IF(Z12<600000,0,IF(Z12<=1300000,Z12-600000,IF(Z12<=4100000,(Z12*0.75)-275000,IF(Z12<=7700000,(Z12*0.85)-685000,IF(Z12<=10000000,(Z12*395)-1455000,Z12-1955000))))))),0)) -> 0 | AD12: 年金１５万円控除 | AE12: =IF(Z12="",0,IF(AE16>=65,IF(AB12>=150000,150000,AB12),0)) -> 0
A13: 営業所得 | F13: 給与調整控除 | G13: =IF((IF(G10>=100000,100000,G10)+IF(D12>=100000,100000,D12)-100000)<0,0,IF(G10>=100000,100000,G10)+IF(D12>=100000,100000,D12)-100000) -> 0 | L13: 給与調整控除 | M13: =IF((IF(M10>=100000,100000,M10)+IF(J12>=100000,100000,J12)-100000)<0,0,IF(M10>=100000,100000,M10)+IF(J12>=100000,100000,J12)-100000) -> 0 | R13: 給与調整控除 | S13: =IF((IF(S10>=100000,100000,S10)+IF(P12>=100000,100000,P12)-100000)<0,0,IF(S10>=100000,100000,S10)+IF(P12>=100000,100000,P12)-100000) -> 0 | X13: 給与調整控除 | Y13: =IF((IF(Y10>=100000,100000,Y10)+IF(V12>=100000,100000,V12)-100000)<0,0,IF(Y10>=100000,100000,Y10)+IF(V12>=100000,100000,V12)-100000) -> 0 | AD13: 給与調整控除 | AE13: =IF((IF(AE10>=100000,100000,AE10)+IF(AB12>=100000,100000,AB12)-100000)<0,0,IF(AE10>=100000,100000,AE10)+IF(AB12>=100000,100000,AB12)-100000) -> 0
A14: 不動産所得 | F14: 軽判給与調整控除 | G14: =IF((IF(G11>=100000,100000,G11)+IF(D12-G12>=100000,100000,D12-G12)-100000)<0,0,IF(G11>=100000,100000,G11)+IF(D12-G12>=100000,100000,D12-G12)-100000) -> 0 | L14: 軽判給与調整控除 | M14: =IF((IF(M11>=100000,100000,M11)+IF(J12-M12>=100000,100000,J12-M12)-100000)<0,0,IF(M11>=100000,100000,M11)+IF(J12-M12>=100000,100000,J12-M12)-100000) -> 0 | R14: 軽判給与調整控除 | S14: =IF((IF(S11>=100000,100000,S11)+IF(P12-S12>=100000,100000,P12-S12)-100000)<0,0,IF(S11>=100000,100000,S11)+IF(P12-S12>=100000,100000,P12-S12)-100000) -> 0 | X14: 軽判給与調整控除 | Y14: =IF((IF(Y11>=100000,100000,Y11)+IF(V12-Y12>=100000,100000,V12-Y12)-100000)<0,0,IF(Y11>=100000,100000,Y11)+IF(V12-Y12>=100000,100000,V12-Y12)-100000) -> 0 | AD14: 軽判給与調整控除 | AE14: =IF((IF(AE11>=100000,100000,AE11)+IF(AB12-AE12>=100000,100000,AB12-AE12)-100000)<0,0,IF(AE11>=100000,100000,AE11)+IF(AB12-AE12>=100000,100000,AB12-AE12)-100000) -> 0
A15: その他の所得 | F15: 非失該当 | G15: =IF(D7="会社都合","TRUE","FALSE") -> FALSE | L15: 非失該当 | M15: =IF(J7="会社都合","TRUE","FALSE") -> FALSE | R15: 非失該当 | S15: =IF(P7="会社都合","TRUE","FALSE") -> FALSE | X15: 非失該当 | Y15: =IF(V7="会社都合","TRUE","FALSE") -> FALSE | AD15: 非失該当 | AE15: =IF(AB7="会社都合","TRUE","FALSE") -> FALSE
A16: 総所得 | B16: =IF(SUM(D10:D15)<0,0,SUM(D10:D15)) -> 0 | F16: 1/1年齢 | G16: =IF(IF(AND(D6=1,E6=1),G3-G4,G3-G4-1)<0,0,IF(AND(D6=1,E6=1),G3-G4,G3-G4-1)) ->  | H16: =IF(SUM(J10:J15)<0,0,SUM(J10:J15)) -> 0 | L16: 1/1年齢 | M16: =IF(IF(AND(J6=1,K6=1),M3-M4,M3-M4-1)<0,0,IF(AND(J6=1,K6=1),M3-M4,M3-M4-1)) ->  | N16: =IF(SUM(P10:P15)<0,0,SUM(P10:P15)) -> 0 | R16: 1/1年齢 | S16: =IF(IF(AND(P6=1,Q6=1),S3-S4,S3-S4-1)<0,0,IF(AND(P6=1,Q6=1),S3-S4,S3-S4-1)) ->  | T16: =IF(SUM(V10:V15)<0,0,SUM(V10:V15)) -> 0 | X16: 1/1年齢 | Y16: =IF(IF(AND(V6=1,W6=1),Y3-Y4,Y3-Y4-1)<0,0,IF(AND(V6=1,W6=1),Y3-Y4,Y3-Y4-1)) ->  | Z16: =IF(SUM(AB10:AB15)<0,0,SUM(AB10:AB15)) -> 0 | AD16: 1/1年齢 | AE16: =IF(IF(AND(AB6=1,AC6=1),AE3-AE4,AE3-AE4-1)<0,0,IF(AND(AB6=1,AC6=1),AE3-AE4,AE3-AE4-1)) -> 
A17: 専従控除額 | F17: 4/1年齢 | G17: =IF(IF(D6<5,G3-G4,G3-G4-1)<0,0,IF(D6<5,G3-G4,G3-G4-1)) ->  | L17: 4/1年齢 | M17: =IF(IF(J6<5,M3-M4,M3-M4-1)<0,0,IF(J6<5,M3-M4,M3-M4-1)) ->  | R17: 4/1年齢 | S17: =IF(IF(P6<5,S3-S4,S3-S4-1)<0,0,IF(P6<5,S3-S4,S3-S4-1)) ->  | X17: 4/1年齢 | Y17: =IF(IF(V6<5,Y3-Y4,Y3-Y4-1)<0,0,IF(V6<5,Y3-Y4,Y3-Y4-1)) ->  | AD17: 4/1年齢 | AE17: =IF(IF(AB6<5,AE3-AE4,AE3-AE4-1)<0,0,IF(AB6<5,AE3-AE4,AE3-AE4-1)) -> 
A18: 軽減判定所得 | B18: =IF(G11-G14+D12-G12+D13+D14+D15+B17<0,0,G11-G14+D12-G12+D13+D14+D15+B17) -> 0 | H18: =IF(M11-M14+J12-M12+J13+J14+J15+H17<0,0,M11-M14+J12-M12+J13+J14+J15+H17) -> 0 | N18: =IF(S11-S14+P12-S12+P13+P14+P15+N17<0,0,S11-S14+P12-S12+P13+P14+P15+N17) -> 0 | T18: =IF(Y11-Y14+V12-Y12+V13+V14+V15+T17<0,0,Y11-Y14+V12-Y12+V13+V14+V15+T17) -> 0 | Z18: =IF(AE11-AE14+AB12-AE12+AB13+AB14+AB15+Z17<0,0,AE11-AE14+AB12-AE12+AB13+AB14+AB15+Z17) -> 0
A19: 賦課標準所得 | B19: =IF(B16<=430000,0,IF(A4>=6,B16-430000,ROUNDDOWN((B16-430000),-3))) -> 0 | H19: =IF(H16<=430000,0,IF(A4>=6,H16-430000,ROUNDDOWN((H16-430000),-3))) -> 0 | N19: =IF(N16<=430000,0,IF(A4>=6,N16-430000,ROUNDDOWN((N16-430000),-3))) -> 0 | T19: =IF(T16<=430000,0,IF(A4>=6,T16-430000,ROUNDDOWN((T16-430000),-3))) -> 0 | Z19: =IF(Z16<=430000,0,IF(A4>=6,Z16-430000,ROUNDDOWN((Z16-430000),-3))) -> 0
A22: 世帯人数 | B22: =G22+M22+S22+Y22+AE22 -> 0 | F22: カウント | G22: =IF(AND(G5="FALSE",G6="FALSE",G7="FALSE",G8="FALSE"),0,1) -> 0 | L22: カウント | M22: =IF(AND(M5="FALSE",M6="FALSE",M7="FALSE",M8="FALSE"),0,1) -> 0 | R22: カウント | S22: =IF(AND(S5="FALSE",S6="FALSE",S7="FALSE",S8="FALSE"),0,1) -> 0 | X22: カウント | Y22: =IF(AND(Y5="FALSE",Y6="FALSE",Y7="FALSE",Y8="FALSE"),0,1) -> 0 | AD22: カウント | AE22: =IF(AND(AE5="FALSE",AE6="FALSE",AE7="FALSE",AE8="FALSE"),0,1) -> 0
A23: 世帯総所得 | B23: =B16+H16+N16+T16+Z16 -> 0
A24: 世帯軽減判定所得 | B24: =B18+H18+N18+T18+Z18 -> 0
A25: 世帯賦課標準所得 | B25: =B19+H19+N19+T19+Z19 -> 0

Sheet 試算結果
R1: =TODAY() -> 2025-04-15
A2: 保険料試算
A4: 令和 | C4: =IF(加入情報入力用!B5="","",加入情報入力用!B5) -> 7 | D4: 年度 | F4: (令和 | H4: =IF(加入情報入力用!B5="","",加入情報入力用!B5) -> 7 | I4: 年 4 月～令和 | N4: =IF(加入情報入力用!B5="","",加入情報入力用!B5+1) -> 8 | O4: 年 3 月)
B6: =IF(加入情報入力用!B10="","",加入情報入力用!B10) -> 0 | F6: 円／年 | I6: =IF(AND(加入情報入力用!B6="",加入情報入力用!B7=""),"( 月分～ 月分)",IF(加入情報入力用!B6=加入情報入力用!B7,"( "&加入情報入力用!B6&" 月分)","( "&加入情報入力用!B6&" 月分～ "&加入情報入力用!B7&" 月分)")) -> ( 4 月分～ 3 月分)
B8: =IF(加入情報入力用!B10="","",加入情報入力用!B10/(加入情報入力用!B21-加入情報入力用!B20+1)) -> 0 | F8: 円／月
B10: 月支払額
C11: 約 | D11: =IF(加入情報入力用!B10="","",加入情報入力用!B10/加入情報入力用!B11) ->  | G11: 円／月 | J11: （ | K11: =IF(加入情報入力用!B11="","",加入情報入力用!B11) ->  | L11: 回）
B14: =IF(加入情報入力用!B5=""," ※保険料の決定通知書は、翌月の 月中旬に発送します。",IF(加入情報入力用!B17=TRUE," ※保険料の決定通知書は、"&加入情報入力用!B5&" 年 6 月中旬に発送します。",IF(加入情報入力用!B16=TRUE," ※保険料の決定通知書は、翌月の "&加入情報入力用!B8+1&" 月中旬に発送します。",IF(加入情報入力用!B8=4," ※保険料の決定通知書は、翌々月の "&6&" 月中旬に発送します。",IF(加入情報入力用!B8=12," ※保険料の決定通知書は、翌月の "&1&" 月中旬に発送します。"," ※保険料の決定通知書は、翌月の "&加入情報入力用!B8+1&" 月中旬に発送します。"))))) -> ※保険料の決定通知書は、翌月の 1 月中旬に発送します。
B15: =IF(加入情報入力用!B16=TRUE,IF(加入情報入力用!B5=""," お支払いは、原則通知書発送月の 月末までの一括払いです。",IF(加入情報入力用!B8=12," お支払いは、原則通知書発送月の "&1&" 月末までの一括払いです。"," お支払いは、原則通知書発送月の "&加入情報入力用!B8+1&" 月末までの一括払いです。")),IF(加入情報入力用!B5=""," お支払いについては、原則通知書発送月の 月から"," お支払いについては、原則通知書発送月の "&IF(加入情報入力用!B17=TRUE," 6 ",IF(加入情報入力用!B8=4," 6 ",IF(加入情報入力用!B8=12," 1 ",加入情報入力用!B8+1)))&" 月から")) -> お支払いについては、原則通知書発送月の 1 月から
B16: =IF(OR(加入情報入力用!B16=TRUE,加入情報入力用!B8=3),"",IF(加入情報入力用!B18=TRUE,IF(加入情報入力用!B5=""," 誕生日の前月の 月までの分割です。"," 誕生日の前月の "&加入情報入力用!B19&" 月までの分割です。" ),IF(加入情報入力用!B5=""," 年度末の 年 3 月までの分割です。"," 年度末の "&加入情報入力用!B5+1&" 年 3 月までの分割です。" ))) -> 年度末の 8 年 3 月までの分割です。
B17: ※納付困難な場合は、決定通知書を受取っていただいてから、 本庁、または行政サービスセンター等でご相談ください。
B21: ※今回の結果は概算であり保険料の決定額ではありません。
B23: ※本シートでは1年間（12か月分）の保険料を計算しておりますが、
B24: 実際に通知される保険料は、加入月数によって変動します。
B26: ※国民健康保険は、決定料金を年度末（3月末）までの分割払いと
B27: となっており、社会保険のような月額払いとは異なります。

Sheet 世帯賦課条件 (hidden)
A1: 賦課明細
A3: 給与所得者等 人数 | C3: =世帯情報入力用!G9+世帯情報入力用!M9+世帯情報入力用!S9+世帯情報入力用!Y9+世帯情報入力用!AE9 -> 0
A4: 世帯被保険者数 | C4: =世帯情報入力用!B22 -> 0
B6: 7割軽減 | C6: 5割軽減 | D6: 2割軽減 | H6: 当該世帯軽減率
A7: 軽減判定額 | B7: =IF(C3=0,430000,430000+((C3-1)*100000)) -> 430000 | C7: =IF(C3=0,430000+(試算年度条件!B4*世帯賦課条件!C4),430000+(試算年度条件!B4*世帯賦課条件!C4)+((C3-1)*100000)) -> 430000 | D7: =IF(C3=0,430000+(試算年度条件!B5*世帯賦課条件!C4),430000+(試算年度条件!B5*世帯賦課条件!C4)+((C3-1)*100000)) -> 430000 | H7: =IF(世帯情報入力用!A4="","",IF(I7=0.3,"7割軽減",IF(I7=0.5,"5割軽減",IF(I7=0.8,"2割軽減","軽減なし")))) -> 7割軽減 | I7: =IF(世帯情報入力用!B24<=世帯賦課条件!B7,0.3,IF(世帯情報入力用!B24<=世帯賦課条件!C7,0.5,IF(世帯情報入力用!B24<=世帯賦課条件!D7,0.8,1))) -> 0.3
B9: 所得割率 | C9: 均等割額 | D9: 平等割額 | E9: 賦課限度額
A10: 医療 | B10: =試算年度条件!B6 -> 0.093 | C10: =試算年度条件!B7 -> 34424 | D10: =試算年度条件!B8 -> 33574 | E10: =試算年度条件!B9 -> 650000
A11: 支援 | B11: =試算年度条件!B10 -> 0.0302 | C11: =試算年度条件!B11 -> 11034 | D11: =試算年度条件!B12 -> 10761 | E11: =試算年度条件!B13 -> 240000
A12: 介護 | B12: =試算年度条件!B14 -> 0.0256 | C12: =試算年度条件!B15 -> 18784 | D12: =試算年度条件!B16 -> 0 | E12: =試算年度条件!B17 -> 170000
B14: 世帯主 | C14: 世帯員1 | D14: 世帯員2 | E14: 世帯員3 | F14: 世帯員4
A15: 総所得金額 | B15: =IF(世帯情報入力用!B16=0,"",世帯情報入力用!B16) ->  | C15: =IF(世帯情報入力用!H16=0,"",世帯情報入力用!H16) ->  | D15: =IF(世帯情報入力用!N16=0,"",世帯情報入力用!N16) ->  | E15: =IF(世帯情報入力用!T16=0,"",世帯情報入力用!T16) ->  | F15: =IF(世帯情報入力用!Z16=0,"",世帯情報入力用!Z16) -> 
A16: 賦課標準所得金額 | B16: =IF(世帯情報入力用!B19=0,"",世帯情報入力用!B19) ->  | C16: =IF(世帯情報入力用!H19=0,"",世帯情報入力用!H19) ->  | D16: =IF(世帯情報入力用!N19=0,"",世帯情報入力用!N19) ->  | E16: =IF(世帯情報入力用!T19=0,"",世帯情報入力用!T19) ->  | F16: =IF(世帯情報入力用!Z19=0,"",世帯情報入力用!Z19) -> 
A17: 医療 所得割額 | B17: =ROUNDDOWN(世帯情報入力用!B19*世帯賦課条件!B10,0) -> 0 | C17: =ROUNDDOWN(世帯情報入力用!H19*世帯賦課条件!B10,0) -> 0 | D17: =ROUNDDOWN(世帯情報入力用!N19*世帯賦課条件!B10,0) -> 0 | E17: =ROUNDDOWN(世帯情報入力用!T19*世帯賦課条件!B10,0) -> 0 | F17: =ROUNDDOWN(世帯情報入力用!Z19*世帯賦課条件!B10,0) -> 0
A18: 医療 均等割額 | B18: =IF(AND(世帯情報入力用!G22=1,世帯情報入力用!G5="TRUE"),ROUNDDOWN(ROUNDDOWN(世帯賦課条件!C10*世帯賦課条件!I7,0)/2,0),IF(AND(世帯情報入力用!G22=1,世帯情報入力用!G5="FALSE"),ROUNDDOWN(世帯賦課条件!C10*世帯賦課条件!I7,0),0)) -> 0 | C18: =IF(AND(世帯情報入力用!M22=1,世帯情報入力用!M5="TRUE"),ROUNDDOWN(ROUNDDOWN(世帯賦課条件!C10*世帯賦課条件!I7,0)/2,0),IF(AND(世帯情報入力用!M22=1,世帯情報入力用!M5="FALSE"),ROUNDDOWN(世帯賦課条件!C10*世帯賦課条件!I7,0),0)) -> 0 | D18: =IF(AND(世帯情報入力用!S22=1,世帯情報入力用!S5="TRUE"),ROUNDDOWN(ROUNDDOWN(世帯賦課条件!C10*世帯賦課条件!I7,0)/2,0),IF(AND(世帯情報入力用!S22=1,世帯情報入力用!S5="FALSE"),ROUNDDOWN(世帯賦課条件!C10*世帯賦課条件!I7,0),0)) -> 0 | E18: =IF(AND(世帯情報入力用!Y22=1,世帯情報入力用!Y5="TRUE"),ROUNDDOWN(ROUNDDOWN(世帯賦課条件!C10*世帯賦課条件!I7,0)/2,0),IF(AND(世帯情報入力用!Y22=1,世帯情報入力用!Y5="FALSE"),ROUNDDOWN(世帯賦課条件!C10*世帯賦課条件!I7,0),0)) -> 0 | F18: =IF(AND(世帯情報入力用!AE22=1,世帯情報入力用!AE5="TRUE"),ROUNDDOWN(ROUNDDOWN(世帯賦課条件!C10*世帯賦課条件!I7,0)/2,0),IF(AND(世帯情報入力用!AE22=1,世帯情報入力用!AE5="FALSE"),ROUNDDOWN(世帯賦課条件!C10*世帯賦課条件!I7,0),0)) -> 0
A19: 医療 平等割額 | B19: =IF(世帯情報入力用!G22+世帯情報入力用!M22+世帯情報入力用!S22+世帯情報入力用!Y22+世帯情報入力用!AE22>0,ROUNDDOWN(D10*I7,0),0) -> 0
A20: 支援 所得割額 | B20: =ROUNDDOWN(世帯情報入力用!B19*世帯賦課条件!B11,0) -> 0 | C20: =ROUNDDOWN(世帯情報入力用!H19*世帯賦課条件!B11,0) -> 0 | D20: =ROUNDDOWN(世帯情報入力用!N19*世帯賦課条件!B11,0) -> 0 | E20: =ROUNDDOWN(世帯情報入力用!T19*世帯賦課条件!B11,0) -> 0 | F20: =ROUNDDOWN(世帯情報入力用!Z19*世帯賦課条件!B11,0) -> 0
A21: 支援 均等割額 | B21: =IF(AND(世帯情報入力用!G22=1,世帯情報入力用!G5="TRUE"),ROUNDDOWN(ROUNDDOWN(世帯賦課条件!C11*世帯賦課条件!I7,0)/2,0),IF(AND(世帯情報入力用!G22=1,世帯情報入力用!G5="FALSE"),ROUNDDOWN(世帯賦課条件!C11*世帯賦課条件!I7,0),0)) -> 0 | C21: =IF(AND(世帯情報入力用!M22=1,世帯情報入力用!M5="TRUE"),ROUNDDOWN(ROUNDDOWN(世帯賦課条件!C11*世帯賦課条件!I7,0)/2,0),IF(AND(世帯情報入力用!M22=1,世帯情報入力用!M5="FALSE"),ROUNDDOWN(世帯賦課条件!C11*世帯賦課条件!I7,0),0)) -> 0 | D21: =IF(AND(世帯情報入力用!S22=1,世帯情報入力用!S5="TRUE"),ROUNDDOWN(ROUNDDOWN(世帯賦課条件!C11*世帯賦課条件!I7,0)/2,0),IF(AND(世帯情報入力用!S22=1,世帯情報入力用!S5="FALSE"),ROUNDDOWN(世帯賦課条件!C11*世帯賦課条件!I7,0),0)) -> 0 | E21: =IF(AND(世帯情報入力用!Y22=1,世帯情報入力用!Y5="TRUE"),ROUNDDOWN(ROUNDDOWN(世帯賦課条件!C11*世帯賦課条件!I7,0)/2,0),IF(AND(世帯情報入力用!Y22=1,世帯情報入力用!Y5="FALSE"),ROUNDDOWN(世帯賦課条件!C11*世帯賦課条件!I7,0),0)) -> 0 | F21: =IF(AND(世帯情報入力用!AE22=1,世帯情報入力用!AE5="TRUE"),ROUNDDOWN(ROUNDDOWN(世帯賦課条件!C11*世帯賦課条件!I7,0)/2,0),IF(AND(世帯情報入力用!AE22=1,世帯情報入力用!AE5="FALSE"),ROUNDDOWN(世帯賦課条件!C11*世帯賦課条件!I7,0),0)) -> 0
A22: 支援 平等割額 | B22: =IF(世帯情報入力用!G22+世帯情報入力用!M22+世帯情報入力用!S22+世帯情報入力用!Y22+世帯情報入力用!AE22>0,ROUNDDOWN(D11*I7,0),0) -> 0
A23: 介護 所得割額 | B23: =IF(世帯情報入力用!G7="TRUE",ROUNDDOWN(世帯情報入力用!B19*世帯賦課条件!B12,0),0) -> 0 | C23: =IF(世帯情報入力用!M7="TRUE",ROUNDDOWN(世帯情報入力用!H19*世帯賦課条件!B12,0),0) -> 0 | D23: =IF(世帯情報入力用!S7="TRUE",ROUNDDOWN(世帯情報入力用!N19*世帯賦課条件!B12,0),0) -> 0 | E23: =IF(世帯情報入力用!Y7="TRUE",ROUNDDOWN(世帯情報入力用!T19*世帯賦課条件!B12,0),0) -> 0 | F23: =IF(世帯情報入力用!AE7="TRUE",ROUNDDOWN(世帯情報入力用!Z19*世帯賦課条件!B12,0),0) -> 0
A24: 介護 均等割額 | B24: =IF(AND(世帯情報入力用!G7="TRUE",世帯情報入力用!G22=1),ROUNDDOWN(世帯賦課条件!C12*世帯賦課条件!I7,0),0) -> 0 | C24: =IF(AND(世帯情報入力用!M7="TRUE",世帯情報入力用!M22=1),ROUNDDOWN(世帯賦課条件!C12*世帯賦課条件!I7,0),0) -> 0 | D24: =IF(AND(世帯情報入力用!S7="TRUE",世帯情報入力用!S22=1),ROUNDDOWN(世帯賦課条件!C12*世帯賦課条件!I7,0),0) -> 0 | E24: =IF(AND(世帯情報入力用!Y7="TRUE",世帯情報入力用!Y22=1),ROUNDDOWN(世帯賦課条件!C12*世帯賦課条件!I7,0),0) -> 0 | F24: =IF(AND(世帯情報入力用!AE7="TRUE",世帯情報入力用!AE22=1),ROUNDDOWN(世帯賦課条件!C12*世帯賦課条件!I7,0),0) -> 0
A25: 介護 平等割額 | B25: =IF(AND(OR(世帯情報入力用!G7="TRUE",世帯情報入力用!M7="TRUE",世帯情報入力用!S7="TRUE",世帯情報入力用!Y7="TRUE",世帯情報入力用!AE7="TRUE"),(世帯情報入力用!G22+世帯情報入力用!M22+世帯情報入力用!S22+世帯情報入力用!Y22+世帯情報入力用!AE22>0)),ROUNDDOWN(世帯賦課条件!D12*世帯賦課条件!I7,0),0) -> 0
A27: 世帯医療分 | B27: =IF(SUM(B17:F19)>=E10,E10,SUM(B17:F19)) -> 0
A28: 世帯支援分 | B28: =IF(SUM(B20:F22)>=E11,E11,SUM(B20:F22)) -> 0
A29: 世帯介護分 | B29: =IF(SUM(B23:F25)>=E12,E12,SUM(B23:F25)) -> 0
A31: 世帯保険料額 | B31: =SUM(B27:B29) -> 0
A32: 世帯月保険料額 | B32: =B31/12 -> 0

Sheet 試算年度条件 (hidden)
A1: =世帯情報入力用!A4 -> 7
A3: 試算年度条件
A4: 5割 | B4: =VLOOKUP(世帯情報入力用!A4,'各年度 料率'!$A$2:$O$9,2,0) -> 305000
A5: 2割 | B5: =VLOOKUP(世帯情報入力用!A4,'各年度 料率'!$A$2:$O$9,3,0) -> 560000
A6: 医療 所得割率 | B6: =VLOOKUP(世帯情報入力用!A4,'各年度 料率'!$A$2:$O$9,4,0) -> 0.093
A7: 医療 均等割額 | B7: =VLOOKUP(世帯情報入力用!A4,'各年度 料率'!$A$2:$O$9,5,0) -> 34424
A8: 医療 平等割額 | B8: =VLOOKUP(世帯情報入力用!A4,'各年度 料率'!$A$2:$O$9,6,0) -> 33574
A9: 医療 限度額 | B9: =VLOOKUP(世帯情報入力用!A4,'各年度 料率'!$A$2:$O$9,7,0) -> 650000
A10: 支援 所得割率 | B10: =VLOOKUP(世帯情報入力用!A4,'各年度 料率'!$A$2:$O$9,8,0) -> 0.0302
A11: 支援 均等割額 | B11: =VLOOKUP(世帯情報入力用!A4,'各年度 料率'!$A$2:$O$9,9,0) -> 11034
A12: 支援 平等割額 | B12: =VLOOKUP(世帯情報入力用!A4,'各年度 料率'!$A$2:$O$9,10,0) -> 10761
A13: 支援 限度額 | B13: =VLOOKUP(世帯情報入力用!A4,'各年度 料率'!$A$2:$O$9,11,0) -> 240000
A14: 介護 所得割率 | B14: =VLOOKUP(世帯情報入力用!A4,'各年度 料率'!$A$2:$O$9,12,0) -> 0.0256
A15: 介護 均等割額 | B15: =VLOOKUP(世帯情報入力用!A4,'各年度 料率'!$A$2:$O$9,13,0) -> 18784
A16: 介護 平等割額 | B16: =VLOOKUP(世帯情報入力用!A4,'各年度 料率'!$A$2:$O$9,14,0) -> 0
A17: 介護 限度額 | B17: =VLOOKUP(世帯情報入力用!A4,'各年度 料率'!$A$2:$O$9,15,0) -> 170000

Sheet 各年度 料率 (hidden)
A1: 年度 | B1: 5割 | C1: 2割 | D1: 医療 所得割率 | E1: 医療 均等割額 | F1: 医療 平等割額 | G1: 医療 限度額 | H1: 支援 所得割率 | I1: 支援 均等割額 | J1: 支援 平等割額 | K1: 支援 限度額 | L1: 介護 所得割率 | M1: 介護 均等割額 | N1: 介護 平等割額 | O1: 介護 限度額
A2: 3 | B2: 285000 | C2: 520000 | D2: 0.0848 | E2: 30157 | F2: 31368 | G2: 630000 | H2: 0.0273 | I2: 9478 | J2: 9858 | K2: 190000 | L2: 0.0247 | M2: 18213 | N2: 0 | O2: 170000
A3: 4 | B3: 285000 | C3: 520000 | D3: 0.0871 | E3: 31854 | F3: 32105 | G3: 630000 | H3: 0.0266 | I3: 9426 | J3: 9500 | K3: 190000 | L3: 0.0248 | M3: 18306 | N3: 0 | O3: 170000
A4: 5 | B4: 290000 | C4: 535000 | D4: 0.0886 | E4: 32948 | F4: 32750 | G4: 650000 | H4: 0.0276 | I4: 9945 | J4: 9886 | K4: 200000 | L4: 0.0261 | M4: 19552 | N4: 0 | O4: 170000
A5: 6 | B5: 295000 | C5: 545000 | D5: 0.0956 | E5: 35040 | F5: 34803 | G5: 650000 | H5: 0.0312 | I5: 11167 | J5: 11091 | K5: 220000 | L5: 0.0264 | M5: 19389 | N5: 0 | O5: 170000
A6: 7 | B6: 305000 | C6: 560000 | D6: 0.093 | E6: 34424 | F6: 33574 | G6: 650000 | H6: 0.0302 | I6: 11034 | J6: 10761 | K6: 240000 | L6: 0.0256 | M6: 18784 | N6: 0 | O6: 170000
A7: 8
A8: 9
A9: 10
